[Event "FIDE Zonal 4-2 Women 2023"]
[Site "Dimbroko"]
[Date "2023.03.31"]
[Round "9.3"]
[White "Oyenga, Justine Anassika"]
[Black "Yavo Tchetche, Marie"]
[Result "0-1"]
[ECO "B40"]
[WhiteElo "1187"]
[BlackElo "1413"]
[Annotator "NA RC COMBH"]
[PlyCount "20"]
[EventDate "2023.03.25"]
[EventType "swiss"]
[EventCountry "IVO"]
[SourceTitle "playchess.com"]
[Source "ChessBase"]
[SourceQuality "1"]
[TimeControl "40/5400+30:1800+30"]

1. e4 {[%emt 0:00:05]} e6 {[%emt 0:00:34]} 2. d4 {[%emt 0:00:32]} c5 {[%emt 0:00:12]} 3. Nf3 {[%emt 0:00:33]} cxd4 {[%emt 0:00:56]} 4. Nxd4 {[%emt 0:00:06]} Nf6 {[%emt 0:00:54]} 5. Nc3 {[%emt 0:00:20]} Bb4 {[%emt 0:00:49]} 6. Bd2 {[%emt 0:00:33]} Bxc3 {[%emt 0:00:34]} 7. Bxc3 {[%emt 0:00:50]} Nxe4 {[%emt 0:00:40]} 8. Bb4 {[%emt 0:01:32]} Qb6 {[%emt 0:00:29]} 9. c3 {[%emt 0:02:20]} Nc6 {[%emt 0:00:33]} 10. Nxc6 {[%emt 0:00:40]} Qxf2# {[%emt 0:01:08]} 0-1

[Event "FIDE Zonal 4-2 Women 2023"]
[Site "Dimbroko"]
[Date "2023.03.31"]
[Round "9.5"]
[White "Kouassi Edichy Berenice"]
[Black "Ayemou Akissi Victoire Sinchie"]
[Result "*"]
[ECO "D77"]
[WhiteElo "1128"]
[BlackElo "1177"]
[Annotator "NA RC COMBH"]
[PlyCount "40"]
[EventDate "2023.03.25"]
[EventType "swiss"]
[EventCountry "IVO"]
[SourceTitle "playchess.com"]
[Source "ChessBase"]
[SourceQuality "1"]
[TimeControl "40/5400+30:1800+30"]

1. d4 {[%emt 0:00:09]} Nf6 {[%emt 0:00:16]} 2. Nf3 {[%emt 0:00:10]} g6 {[%emt 0:00:16]} 3. g3 {[%emt 0:00:11]} Bg7 {[%emt 0:00:19]} 4. Bg2 {[%emt 0:00:13]} O-O {[%emt 0:00:16]} 5. O-O {[%emt 0:00:11]} d5 {[%emt 0:00:14]} 6. c4 {[%emt 0:00:20]} e6 {[%emt 0:00:22]} 7. Re1 {[%emt 0:01:54]} Nc6 {[%emt 0:00:37]} 8. Bg5 {[%emt 0:01:09]} h6 {[%emt 0:00:36]} 9. Bf4 {[%emt 0:00:25]} g5 {[%emt 0:00:38]} 10. Be3 {[%emt 0:01:16]} Re8 {[%emt 1:31:56]} 11. Ne5 {[%emt 0:00:38]} Nxe5 {[%emt 1:30:48]} 12. dxe5 {[%emt 0:00:01]} Nd7 {[%emt 1:29:51]} 13. Bd4 {[%emt 1:30:23]} dxc4 {[%emt 0:00:00]} 14. e4 {[%emt 0:00:00]} Nxe5 {[%emt 0:00:00]} 15. Bc3 {[%emt 0:00:00]} Qd6 {[%emt 0:01:30]} 16. Nd2 {[%emt 0:00:00]} b5 {[%emt 0:00:00]} 17. Qe2 {[%emt 0:00:00]} Bb7 {[%emt 0:02:30]} 18. Rad1 {[%emt 0:00:00]} Nd3 {[%emt 0:03:00]} 19. Bxg7 {[%emt 0:00:00]} Kxg7 {[%emt 0:00:00]} 20. e5 {[%emt 0:00:00]} Qb6 {[%emt 0:00:00]} *